Cogmind - Beta 11.1 @@@ ROGUE MODE // 2022.11.02 @ 21:44:01 Player: Gucio Result: Self-destructed Performance ------------- Evolutions (1) 500 Regions Visited (3) 600 Robots Destroyed (6) 30 Value Destroyed (48) 48 Prototype IDs (0) 0 Alien Tech Used (0) 0 Bonus (0) 0 TOTAL SCORE: 1178 Bonus ------- None Cogmind --------- Core Integrity 390/400 Matter 213/300 Energy 250/250 System Corruption 0% Temperature Warm (144) Movement Walking (120) Location -9/Materials Parts ------- > --- POWER (1) -------- Ion Engine > --- PROPULSION (3) --- Aluminum Leg Aluminum Leg Aluminum Leg > --- UTILITY (3) ------ Medium Storage Unit Improved Terrain Scanner Seismic Detector > --- WEAPON (2) ------- Medium Laser Small Laser > --- INVENTORY (10) --- Ion Engine Ion Engine Light Ion Engine Small Storage Unit Light Assault Rifle Peak State ------------ > --- POWER ------------ Ion Engine > --- PROPULSION ------- Aluminum Leg Aluminum Leg Aluminum Leg > --- UTILITY ---------- Medium Storage Unit Improved Terrain Scanner Seismic Detector > --- WEAPON ----------- Medium Laser Small Laser > --- INVENTORY -------- Ion Engine Ion Engine Light Ion Engine Small Storage Unit Light Assault Rifle [Rating: 11] Favorites ----------- Power Ion Engine Engine Ion Engine Propulsion Aluminum Leg Leg Aluminum Leg Utility Seismic Detector Device Seismic Detector Storage Medium Storage Unit Weapon Small Laser Energy Gun Small Laser Build | -11 -10 -10 -9 ------- Run | Scr Mat Min Mat Slots Evolved 2 | . . . 2 Power . | . . . . Propulsion 1 | . . . 1 Utility 1 | . . . 1 Weapon . | . . . . Parts Attached 10 | 7 1 . 2 Power 1 | 1 . . . Engine 1 | 1 . . . Core . | . . . . Reactor . | . . . . Propulsion 3 | 2 . . 1 Treads . | . . . . Leg 3 | 2 . . 1 Wheel . | . . . . Hover . | . . . . Flight . | . . . . Utility 4 | 2 1 . 1 Device 2 | 1 . . 1 Storage 2 | 1 1 . . Processor . | . . . . Hackware . | . . . . Protection . | . . . . Artifact . | . . . . Weapon 2 | 2 . . . Energy Gun 2 | 2 . . . Energy Cannon . | . . . . Ballistic Gun . | . . . . Ballistic Cannon . | . . . . Launcher . | . . . . Special Weapon . | . . . . Impact Weapon . | . . . . Slashing Weapon . | . . . . Piercing Weapon . | . . . . Special Melee Weapon . | . . . . Unidentified Prototypes . | . . . . Parts Lost . | . . . . Power . | . . . . Propulsion . | . . . . Utility . | . . . . Weapon . | . . . . Highest Loss Streak . | . . . . To Critical Strikes . | . . . . Average Slot Usage (%) 100 | . 100 100 100 Engine 13 | . 14 14 11 Leg 29 | . 28 28 33 Device 15 | . 14 14 22 Storage 13 | . 14 14 11 Energy Gun 26 | . 28 28 22 Naked Turns . | . . . . Heaviest Build 20 | 14 19 19 20 Greatest Support 30 | 20 20 20 30 Greatest Overweight (x) 2 | 2 . . . Average Overweight (x) . | . . . . Largest Inventory Capacity 10 | 8 10 10 10 Average Capacity 8 | 7 8 10 10 Most Carried 7 | 4 7 7 6 Average Carried 4 | 1 5 7 5 Final Capacity 10 | 8 10 10 10 Final Carried 7 | 4 7 7 5 Class Distribution -------------------- 100% | Mutant Dominant Class ---------------- Mutant | -10/Materials Mutant | -10/Mines Mutant | -9/Materials Resources | -11 -10 -10 -9 ----------- Run | Scr Mat Min Mat Matter Collected 205 | 192 . . 13 Remotely . | . . . . Salvage Created 121 | 90 . . 31 Parts 18 | 14 . . 4 Haulers Intercepted . | . . . . Recyclers Shooed . | . . . . Parts Field Recycled . | . . . . Retrieved Matter . | . . . . Parts Self-Destructed . | . . . . Prevented . | . . . . Kills | -11 -10 -10 -9 ------- Run | Scr Mat Min Mat Combat Hostiles Destroyed 2 | . . . 2 Guns 2 | . . . 2 Classes Destroyed 2 | 1 . . 1 Tunneler 4 | 4 . . . Swarmer 2 | . . . 2 Best Kill Streak 2 | 2 . . 2 Combat Bots Only 2 | . . . 2 Max Kills in Single Turn 1 | 1 . . 1 Gunslinging . | . . . . Exploded . | . . . . Melee . | . . . . Uniques/NPCs Destroyed . | . . . . Combat | -11 -10 -10 -9 -------- Run | Scr Mat Min Mat Damage Taken 318 | . . 243 75 Core 28 | . . 18 10 Absorbed by Shields . | . . . . Core Remaining (%) 96 | 100 . 92 . Volleys Fired 13 | 5 . 1 7 Largest 2 | 2 . 2 2 Hottest 90 | 90 . 90 90 Shots Fired 26 | 10 . 2 14 Gun 26 | 10 . 2 14 Cannon . | . . . . Launcher . | . . . . Special . | . . . . Kinetic . | . . . . Thermal 26 | 10 . 2 14 Explosive . | . . . . Electromagnetic . | . . . . Robot Hit Streak 6 | 4 . 6 5 Robot Miss Streak 2 | 2 . . 1 Penetration Max . | . . . . Secondary Targets . | . . . . Shots Hit Robots 17 | 5 . 2 10 Core Hits 7 | 4 . 1 2 Critical Kills . | . . . . Critical Parts Destroyed . | . . . . Critical Strikes . | . . . . Melee Attacks . | . . . . Impact . | . . . . Slashing . | . . . . Piercing . | . . . . Sneak Attacks . | . . . . Combat Hostiles . | . . . . Follow-up Attacks . | . . . . Damage Inflicted 236 | 74 . 32 130 Guns 227 | 74 . 23 130 Cannons . | . . . . Explosions . | . . . . Melee . | . . . . Ramming 9 | . . 9 . Kinetic . | . . . . Thermal 227 | 74 . 23 130 Explosive . | . . . . Electromagnetic . | . . . . Impact . | . . . . Slashing . | . . . . Piercing . | . . . . Highest Corruption . | . . . . Average Corruption . | . . . . Corruption Purged . | . . . . Corruption Blocked . | . . . . Overload Shots . | . . . . Overflow Damage . | . . . . Projectiles . | . . . . Explosions . | . . . . Melee . | . . . . Knockbacks . | . . . . Impact . | . . . . Kinetic . | . . . . Secondary . | . . . . Self-Inflicted Damage . | . . . . Shots . | . . . . Rammed . | . . . . Targets Rammed 2 | . . 2 . Kicked 2 | . . 2 . Crushed . | . . . . Highest Temperature 144 | 60 . 45 144 Average Temperature 39 | 23 . 24 60 Received Heat Transfer 129 | . . 111 18 Siege Activations . | . . . . Robots Corrupted . | . . . . Combat Hostiles . | . . . . Parts Fried . | . . . . Impact Corruptions . | . . . . Robots Melted . | . . . . Combat Hostiles . | . . . . Parts Melted . | . . . . Heat Transferred 607 | 198 . 62 347 Parts Sabotaged . | . . . . Parts Stolen . | . . . . Parts Stripped . | . . . . Power Chain Reactions . | . . . . Missiles Intercepted . | . . . . Alert | -11 -10 -10 -9 ------- Run | Scr Mat Min Mat Peak Influence 68 | 20 13 49 68 Initial 18 | . 13 4 18 Average 17 | 7 13 24 28 Maximum Alert Level . | . . . . Low Security (%) 100 | 100 100 100 100 Level 1 . | . . . . Level 2 . | . . . . Level 3 . | . . . . Level 4 . | . . . . Level 5 . | . . . . High Security . | . . . . Max Security . | . . . . Squads Dispatched 3 | . 2 . 1 Investigation 1 | . 1 . . Extermination . | . . . . Reinforcement 2 | . 1 . 1 Assault . | . . . . Garrison . | . . . . Intercept . | . . . . Searches Triggered . | . . . . Construction Impeded . | . . . . Haulers Reinforced . | . . . . Active Scanning Responses . | . . . . Cargo Convoy Interrupts . | . . . . Stealth | -11 -10 -10 -9 --------- Run | Scr Mat Min Mat Distress Signals . | . . . . Communications Jammed . | . . . . Distress Signals . | . . . . Times Spotted 10 | . 1 3 6 Peak Tracking Total 7 | . . 5 7 Tactical Retreats 1 | . . 1 . Traps | -11 -10 -10 -9 ------- Run | Scr Mat Min Mat Traps Triggered 1 | . 1 . . Indirectly . | . . . . Trap Hack Attempts . | . . . . Triggered . | . . . . Disarmed . | . . . . Reprogrammed . | . . . . Reused . | . . . . Traps Extracted . | . . . . Installed . | . . . . Triggered . | . . . . Machines | -11 -10 -10 -9 ---------- Run | Scr Mat Min Mat Machines Disabled . | . . . . Max in Single Turn . | . . . . Machines Sabotaged . | . . . . Garrisons Compromised . | . . . . Overloaded Fab Kills . | . . . . Hacking | -11 -10 -10 -9 --------- Run | Scr Mat Min Mat Machines Accessed . | . . . . Terminals . | . . . . Fabricators . | . . . . Repair Stations . | . . . . Recycling Units . | . . . . Scanalyzers . | . . . . Garrison Access . | . . . . Total Hacks . | . . . . Successful . | . . . . Failed . | . . . . Catastrophic . | . . . . Database Lockouts . | . . . . Manual . | . . . . Terminals . | . . . . Fabricators . | . . . . Repair Stations . | . . . . Recycling Units . | . . . . Scanalyzers . | . . . . Garrison Access . | . . . . Terminal Hacks . | . . . . Fabricator Hacks . | . . . . Repair Station Hacks . | . . . . Recycling Unit Hacks . | . . . . Scanalyzer . | . . . . Garrison Access Hacks . | . . . . Unauthorized Hacks . | . . . . Terminals . | . . . . Fabricators . | . . . . Repair Stations . | . . . . Recycling Units . | . . . . Scanalyzers . | . . . . Garrison Access . | . . . . Data Cores Recovered . | . . . . Used . | . . . . Hacking Detections . | . . . . Full Trace Events . | . . . . Feedback Events . | . . . . Feedback Blocked . | . . . . Robot Schematics Acquired . | . . . . Robots Built . | . . . . Authchips . | . . . . Time . | . . . . Total Robot Build Rating . | . . . . Part Schematics Acquired . | . . . . Parts Built . | . . . . Authchips . | . . . . Time . | . . . . Total Part Build Rating . | . . . . Parts Repaired . | . . . . Time . | . . . . Parts Recycled . | . . . . Recycled Matter . | . . . . Retrieved Matter . | . . . . Retrieved Components . | . . . . Parts Scanalyzed . | . . . . Part Schematics Acquired . | . . . . Parts Damaged . | . . . . Bothacking | -11 -10 -10 -9 ------------ Run | Scr Mat Min Mat Used RIF Installer . | . . . . Robots Hacked . | . . . . Non-combat . | . . . . Combat . | . . . . Robot Hacks Applied . | . . . . Relay Couplers Released . | . . . . Fabnet Peak Effective % . | . . . . Robots Rewired . | . . . . Allies Hacked . | . . . . Hacks Repelled . | . . . . Allies | -11 -10 -10 -9 -------- Run | Scr Mat Min Mat Total Allies . | . . . . Largest Group . | . . . . Highest-Rated Group . | . . . . Highest-Rated Ally . | . . . . Total Orders . | . . . . Ally Attacks . | . . . . Total Damage . | . . . . Kills . | . . . . Allies Corrupted . | . . . . Allies Melted . | . . . . Intel | -11 -10 -10 -9 ------- Run | Scr Mat Min Mat Robot Analysis Total . | . . . . Derelict Logs Recovered . | . . . . Drone Launches . | . . . . Drone Recoveries . | . . . . Exploration | -11 -10 -10 -9 ------------- Run | Scr Mat Min Mat Turns Passed 424 | 114 92 147 71 Spaces Moved 295 | 72 67 119 37 Core 21 | 21 . . . Treads . | . . . . Legs 274 | 51 67 119 37 Wheels . | . . . . Hover . | . . . . Flight . | . . . . Fastest Speed 50 | 50 120 120 120 Average Speed 119 | 119 120 120 120 Slowest Speed 150 | 150 120 120 120 Overloaded Moves . | . . . . Propulsion Burnouts . | . . . . Robots Hopped . | . . . . Cave-ins Triggered . | . . . . Exploration Rate (%) 16 | 4 19 37 5 Regions Visited 3 Branch Regions 1 Pre-discovered Areas . | . . . . Known Exits Taken . | . . . . Unknown Exits Taken 3 | 1 1 1 . Scrap Searched . | . . . . Spaces Dug . | . . . . Terrain Destroyed . | . . . . Melee . | . . . . Projectile . | . . . . AOE . | . . . . Terrain Rammed . | . . . . Walls Destroyed . | . . . . Machines Disabled . | . . . . Actions | -11 -10 -10 -9 --------- Run | Scr Mat Min Mat Total 335 | 87 78 121 49 Wait 11 | . 8 . 3 Move 292 | 71 66 118 37 Hop . | . . . . Pick Up 7 | 4 3 . . Fast Attach 7 | 7 . . . Attach 2 | . . . 2 Detach . | . . . . Swap 1 | . 1 . . Drop . | . . . . Fire 13 | 5 . 1 7 Melee . | . . . . Ram . | . . . . Kick 2 | . . 2 . Crush . | . . . . Escape Stasis . | . . . . Rewire . | . . . . Trap . | . . . . Miscellaneous . | . . . . Route ------- -11/Scrapyard -10/Materials -10/Mines -9/Materials History --------- Turn | Location | Event 18 | -11/Scrapyard | Discovered new exit (range 13) 115 | -11/Scrapyard | Entered Materials 193 | -10/Materials | Discovered new exit (range 13) 207 | -10/Materials | Entered Mines 225 | -10/Mines | Met a Derelict bent on vengeance 314 | -10/Mines | Build established: Mutant 348 | -10/Mines | Discovered new exit (range 5) 354 | -10/Mines | Entered Materials 354 | -9/Materials | Evolved 2 slots: Propulsion x1, Utility x1 425 | -9/Materials | Self-destructed Last Messages --------------- 00163_ ALERT: Alarm triggered, dispatching investigation squad. 00178_ Acquired Ion Engine. 00188_ Acquired Aluminum Leg. 00193_ EXIT=FOUND LOCATION=UNKNOWN GOAL=ESCAPE 00222_ T-07 Excavator is excavating. 00300_ Kicked R-06 Scavenger. 00346_ Kicked T-07 Excavator. 00348_ EXIT=FOUND PARAMETERS=PROPULSION+1,UTILITY+1 LOCATION=UNKNOWN GOAL=ESCAPE 00383_ O-16 Technician: "IFF HANDSHAKE FAILED. SECURING TERMINAL." 00386_ O-16 Technician uses terminal to summon reinforcements. 00386_ ALERT: Hostiles spotted, dispatching reinforcements to Terminal M001. 00386_ O-16 Technician locks terminal. 00407_ S-10 Pest destroyed. 00414_ Acquired 13 matter. Map ----- +----------------------------------------------------+ | | | | | | | | | | | | | ?????????????????????????????##########??????????? | | ???????????????????????#???#?# #?????????? | | ???????????????????????##????# #?????????? | | ??????????????????????????#??# #???????#?? | | ???????????????????????#?????# #?????????? | | ?????????????????????????????# #?????????? | | ????????????????????#????##### #?????????? | | ???????????????? ????????# # #??#??????? | | ?????????????????????????# # # ???#????? | | ?????????????? ??????????# ######+####?????????? | | ?????????????????????????# #?????#????? | | ?????????????????????????# #??#???????? | | ?????????????????????????# ## ????????? | | ?????????????????????????# #??????????? | | ??????????????????#??????# ##?????????? | | ?????????????????????????# """ ##? ???????#? | | ??????????????#??????????# """ #??????#????? | | ?????????????????######### """ #???????????? | | ?????????? gsg= #?? ?? ????? | | ???????????????#?########@ #???????????? | | ????????????????????????# o # ?? ???????? | | ????????????????????????# "" #???????????? | | ????????????????????????# T" #???????????? | | ????????????????????????# "" #???????????? | | ????????????????????????# #???????????? | | ?????????????? ?????????# #???????????? | | ????????????????????????##############???????????? | | ??????????????"??????????????????????#???????????? | | ?????????????????????????????????????????????????? | | ?????????????"???????????????????????????????????? | | ?????????????????????????????????????????????????? | | ?????????????????????????????????????????????????? | | ?????????????????????#???????? ??????????????????? | | ?????????????????????????????????????????????????? | | ?????????????????????????????????????????????????? | | ?????????????????????????????????????????????????? | | ?????????????????????????????????????????????????? | | ?????????????????????????????????????????????????? | | ?????????????????????????????????????????????????? | | ?????????????????????????????????????????????????? | | ?????????????????????????????????????????????????? | | ?????????????????????????????????????????????????? | | ?????????????????????????????????????????????????? | | ?????????????????????????????????????????????????? | +----------------------------------------------------+ Best States ------------- Heat Dissipation 28 Energy Generation 10 Energy Capacity 250 Matter Stores 222 Matter Capacity 300 Sight Range 16 Terrain Scan Range 16 Terrain Scan Density 10 Evasion (%) 55 Item Schematics ----------------- None Robot Schematics ------------------ None Fabricated ------------ Nothing Alien Tech Used ----------------- None Achievements -------------- None Challenges ------------ None Game ------ Seed HeartHugeRifle Manual? 0 Play Time 00:06:01 Cumulative 7.1 hours Start 2022.11.02 @ 21:38:50 End 2022.11.02 @ 21:44:01 Sessions 1 Manual Loads 0 Difficulty Rogue Special Mode None Game No. 13 Rogue 9 Adventurer 4 Explorer 0 Win Type - Total 0 Types 0/0/0/0/0/0/0/0/0 Lore% 8 Gallery% 10 Achievement% 10 Wizard Run 0 Options --------- ASCII 0 Keyboard 1 Movement Arrows Keybinds 0 Fullscreen 2 Font 24/Smallcaps Map View 76x50 Tactical HUD 1 Map Filters NONE Filters NONE Steam 1 RUN: a7c741a2-5b2c-47a5-96ca-2333555cbdff